[Event "Titled Tuesday Blitz March 08 Early 2022"]
[White "Garv Gaur"]
[Black "Voit, Daria"]
[WhiteFideId "45030839"]
[BlackFideId "4182146"]
[WhiteElo "1950"]
[BlackElo "2323"]
[Result "1-0"]
[Round "09"]
[TimeControl "180+1"]
[Date "2022.03.09"]
[WhiteClock "0:00:17"]
[BlackClock "0:00:54"]

1. d4 {[%clk 0:02:56]}  d5 {[%clk 0:02:59]} 2. Nf3 {[%clk 0:02:57]}  Bg4 {[%clk 0:02:57]} 3. c4 {[%clk 0:02:56]}  Bxf3 {[%clk 0:02:53]} 4. exf3 {[%clk 0:02:49]}  e6 {[%clk 0:02:52]} 5. Nc3 {[%clk 0:02:47]}  c6 {[%clk 0:02:51]} 6. c5 {[%clk 0:02:45]}  Ne7 {[%clk 0:02:49]} 7. f4 {[%clk 0:02:46]}  g6 {[%clk 0:02:49]} 8. Be3 {[%clk 0:02:37]}  Bg7 {[%clk 0:02:49]} 9. Bd3 {[%clk 0:02:37]}  b6 {[%clk 0:02:47]} 10. b4 {[%clk 0:02:34]}  a5 {[%clk 0:02:47]} 11. a3 {[%clk 0:02:32]}  Nd7 {[%clk 0:02:44]} 12. O-O {[%clk 0:02:27]}  axb4 {[%clk 0:02:35]} 13. axb4 {[%clk 0:02:27]}  bxc5 {[%clk 0:02:36]} 14. Rxa8 {[%clk 0:02:09]}  Qxa8 {[%clk 0:02:35]} 15. bxc5 {[%clk 0:02:10]}  Nxc5 {[%clk 0:02:35]} 16. Nxd5 {[%clk 0:02:00]}  cxd5 {[%clk 0:02:20]} 17. dxc5 {[%clk 0:01:59]}  O-O {[%clk 0:02:20]} 18. Bb5 {[%clk 0:01:41]}  d4 {[%clk 0:01:58]} 19. Bd2 {[%clk 0:01:39]}  Rc8 {[%clk 0:01:56]} 20. Qa1 {[%clk 0:01:05]}  Qxa1 {[%clk 0:01:16]} 21. Rxa1 {[%clk 0:01:06]}  Rxc5 {[%clk 0:01:15]} 22. Ra8+ {[%clk 0:00:30]}  Rc8 {[%clk 0:01:15]} 23. Rxc8+ {[%clk 0:00:29]}  Nxc8 {[%clk 0:01:16]} 24. Kf1 {[%clk 0:00:30]}  Nd6 {[%clk 0:01:07]} 25. Ba6 {[%clk 0:00:30]}  Kf8 {[%clk 0:01:06]} 26. Ke2 {[%clk 0:00:30]}  Ke7 {[%clk 0:01:03]} 27. Bb4 {[%clk 0:00:29]}  Kd7 {[%clk 0:01:03]} 28. Bxd6 {[%clk 0:00:27]}  Kxd6 {[%clk 0:01:03]} 29. Kd3 {[%clk 0:00:28]}  Kc5 {[%clk 0:00:59]} 30. Bc8 {[%clk 0:00:26]}  e5 {[%clk 0:00:59]} 31. fxe5 {[%clk 0:00:25]}  Bxe5 {[%clk 0:01:00]} 32. g3 {[%clk 0:00:24]}  g5 {[%clk 0:00:59]} 33. Bf5 {[%clk 0:00:23]}  h6 {[%clk 0:00:59]} 34. Ke4 {[%clk 0:00:18]}  Kc4 {[%clk 0:00:57]} 35. Kxe5 {[%clk 0:00:18]}  d3 {[%clk 0:00:56]} 36. Kf6 {[%clk 0:00:17]}  d2 {[%clk 0:00:54]} 37. Bg4 {[%clk 0:00:17]} 1-0


[Site "https://www.chess.com"]

[Event "Titled Tuesday Blitz March 08 Early 2022"]
[White "Gatterer, Florian"]
[Black "Guseva, Marina"]
[WhiteFideId "811688"]
[BlackFideId "4149351"]
[WhiteElo "2218"]
[BlackElo "2160"]
[Result "0-1"]
[Round "09"]
[TimeControl "180+1"]
[Date "2022.03.09"]
[WhiteClock "0:00:11"]
[BlackClock "0:00:06"]

1. b3 {[%clk 0:03:00]}  e5 {[%clk 0:02:55]} 2. Bb2 {[%clk 0:02:59]}  d6 {[%clk 0:02:55]} 3. e3 {[%clk 0:02:55]}  c5 {[%clk 0:02:55]} 4. c4 {[%clk 0:02:47]}  Nc6 {[%clk 0:02:48]} 5. g3 {[%clk 0:02:44]}  g6 {[%clk 0:02:48]} 6. Bg2 {[%clk 0:02:45]}  Bg7 {[%clk 0:02:46]} 7. Ne2 {[%clk 0:02:45]}  Nge7 {[%clk 0:02:45]} 8. O-O {[%clk 0:02:44]}  O-O {[%clk 0:02:45]} 9. d4 {[%clk 0:02:43]}  exd4 {[%clk 0:02:40]} 10. exd4 {[%clk 0:02:42]}  Bg4 {[%clk 0:02:39]} 11. f3 {[%clk 0:02:35]}  Bd7 {[%clk 0:02:29]} 12. Qd2 {[%clk 0:02:31]}  cxd4 {[%clk 0:02:20]} 13. Kh1 {[%clk 0:02:15]}  Nf5 {[%clk 0:02:08]} 14. Na3 {[%clk 0:02:07]}  Re8 {[%clk 0:01:17]} 15. Nb5 {[%clk 0:02:03]}  d3 {[%clk 0:00:36]} 16. Nf4 {[%clk 0:01:44]}  Ne3 {[%clk 0:00:28]} 17. Bxg7 {[%clk 0:01:31]}  Nxf1 {[%clk 0:00:25]} 18. Rxf1 {[%clk 0:01:23]}  Kxg7 {[%clk 0:00:24]} 19. Nxd6 {[%clk 0:01:23]}  Re5 {[%clk 0:00:18]} 20. Nxd3 {[%clk 0:01:21]}  Re7 {[%clk 0:00:15]} 21. Qc3+ {[%clk 0:00:48]}  f6 {[%clk 0:00:14]} 22. Ne4 {[%clk 0:00:24]}  Qf8 {[%clk 0:00:10]} 23. Nf4 {[%clk 0:00:22]}  Ne5 {[%clk 0:00:08]} 24. Nd5 {[%clk 0:00:22]}  Re6 {[%clk 0:00:07]} 25. f4 {[%clk 0:00:22]}  Ng4 {[%clk 0:00:06]} 26. Bh3 {[%clk 0:00:20]}  Rxe4 {[%clk 0:00:06]} 27. Bxg4 {[%clk 0:00:17]}  Bxg4 {[%clk 0:00:06]} 28. Qd3 {[%clk 0:00:16]}  Rae8 {[%clk 0:00:06]} 29. h3 {[%clk 0:00:16]}  Bf5 {[%clk 0:00:06]} 30. Qd1 {[%clk 0:00:14]}  R4e6 {[%clk 0:00:06]} 31. g4 {[%clk 0:00:14]}  Be4+ {[%clk 0:00:07]} 32. Kh2 {[%clk 0:00:14]}  Bxd5 {[%clk 0:00:07]} 33. cxd5 {[%clk 0:00:15]}  Re2+ {[%clk 0:00:07]} 34. Kh1 {[%clk 0:00:14]}  Qd6 {[%clk 0:00:07]} 35. g5 {[%clk 0:00:13]}  fxg5 {[%clk 0:00:06]} 36. Qd4+ {[%clk 0:00:13]}  Kg8 {[%clk 0:00:07]} 37. Rc1 {[%clk 0:00:12]}  R2e4 {[%clk 0:00:06]} 38. Qd2 {[%clk 0:00:11]}  Qxf4 {[%clk 0:00:06]} 0-1


[Site "https://www.chess.com"]

[Event "Titled Tuesday Blitz March 08 Early 2022"]
[White "Gombocz, Ferenc Jr."]
[Black "Samaganova, Aleksandra"]
[WhiteFideId "775029"]
[BlackFideId "13800221"]
[WhiteElo "1913"]
[BlackElo "1859"]
[Result "1/2-1/2"]
[Round "09"]
[TimeControl "180+1"]
[Date "2022.03.09"]
[WhiteClock "0:00:17"]
[BlackClock "0:00:04"]

1. d4 {[%clk 0:03:00]}  Nf6 {[%clk 0:02:59]} 2. Nf3 {[%clk 0:03:00]}  e6 {[%clk 0:02:59]} 3. e3 {[%clk 0:03:00]}  b6 {[%clk 0:03:00]} 4. Bd3 {[%clk 0:03:00]}  Bb7 {[%clk 0:03:00]} 5. O-O {[%clk 0:03:00]}  Be7 {[%clk 0:03:01]} 6. b3 {[%clk 0:02:59]}  O-O {[%clk 0:03:01]} 7. Bb2 {[%clk 0:02:59]}  c5 {[%clk 0:03:01]} 8. Nbd2 {[%clk 0:02:59]}  d5 {[%clk 0:03:00]} 9. Ne5 {[%clk 0:02:59]}  Nc6 {[%clk 0:03:00]} 10. f4 {[%clk 0:02:58]}  Nd7 {[%clk 0:02:52]} 11. Rf3 {[%clk 0:02:52]}  f5 {[%clk 0:02:47]} 12. a3 {[%clk 0:02:46]}  Ndxe5 {[%clk 0:02:43]} 13. fxe5 {[%clk 0:02:45]}  Bg5 {[%clk 0:02:27]} 14. Qe2 {[%clk 0:02:35]}  Rc8 {[%clk 0:02:16]} 15. Raf1 {[%clk 0:02:31]}  Bh6 {[%clk 0:02:09]} 16. c4 {[%clk 0:02:20]}  cxd4 {[%clk 0:02:00]} 17. exd4 {[%clk 0:02:17]}  Nxd4 {[%clk 0:01:43]} 18. Bxd4 {[%clk 0:02:03]}  dxc4 {[%clk 0:01:43]} 19. Bxc4 {[%clk 0:01:44]}  Qxd4+ {[%clk 0:01:36]} 20. R3f2 {[%clk 0:01:39]}  Bd5 {[%clk 0:01:21]} 21. Kh1 {[%clk 0:01:38]}  Rfd8 {[%clk 0:00:55]} 22. Bxd5 {[%clk 0:01:21]}  Rxd5 {[%clk 0:00:53]} 23. Nc4 {[%clk 0:01:17]}  b5 {[%clk 0:00:48]} 24. Nd6 {[%clk 0:01:11]}  Rc3 {[%clk 0:00:36]} 25. Qh5 {[%clk 0:01:07]}  g6 {[%clk 0:00:20]} 26. Qxh6 {[%clk 0:01:06]}  Qxf2 {[%clk 0:00:19]} 27. Rg1 {[%clk 0:00:58]}  Rxe5 {[%clk 0:00:17]} 28. Ne8 {[%clk 0:00:53]}  Kf7 {[%clk 0:00:07]} 29. Qg7+ {[%clk 0:00:47]}  Kxe8 {[%clk 0:00:07]} 30. Qxe5 {[%clk 0:00:47]}  Re3 {[%clk 0:00:08]} 31. Qh8+ {[%clk 0:00:43]}  Ke7 {[%clk 0:00:07]} 32. Qxh7+ {[%clk 0:00:43]}  Kf6 {[%clk 0:00:08]} 33. Qh8+ {[%clk 0:00:42]}  Kg5 {[%clk 0:00:05]} 34. Qd8+ {[%clk 0:00:38]}  Kg4 {[%clk 0:00:05]} 35. h3+ {[%clk 0:00:35]}  Kf4 {[%clk 0:00:05]} 36. Qd4+ {[%clk 0:00:28]}  Kg5 {[%clk 0:00:03]} 37. Qd8+ {[%clk 0:00:18]}  Kf4 {[%clk 0:00:04]} 38. Qd4+ {[%clk 0:00:18]}  Kg5 {[%clk 0:00:04]} 39. Qd8+ {[%clk 0:00:17]}  Kf4 {[%clk 0:00:04]} 1/2-1/2


[Site "https://www.chess.com"]

[Event "Titled Tuesday Blitz March 08 Early 2022"]
[White "Gracia Alvarez, Gerardo Antonio"]
[Black "Jaferian, Koosha"]
[WhiteFideId "5109124"]
[BlackFideId "12507440"]
[WhiteElo "2139"]
[BlackElo "2030"]
[Result "0-1"]
[Round "09"]
[TimeControl "180+1"]
[Date "2022.03.09"]
[WhiteClock "0:00:06"]
[BlackClock "0:00:21"]

1. e4 {[%clk 0:03:00]}  c5 {[%clk 0:03:00]} 2. Nc3 {[%clk 0:03:00]}  Nc6 {[%clk 0:02:57]} 3. Bb5 {[%clk 0:03:00]}  Nd4 {[%clk 0:02:55]} 4. Nf3 {[%clk 0:03:00]}  a6 {[%clk 0:02:52]} 5. Bd3 {[%clk 0:02:58]}  e6 {[%clk 0:02:52]} 6. O-O {[%clk 0:02:51]}  Nc6 {[%clk 0:02:52]} 7. Re1 {[%clk 0:02:47]}  d6 {[%clk 0:02:52]} 8. Bf1 {[%clk 0:02:46]}  Nf6 {[%clk 0:02:53]} 9. d4 {[%clk 0:02:46]}  cxd4 {[%clk 0:02:52]} 10. Nxd4 {[%clk 0:02:46]}  Be7 {[%clk 0:02:53]} 11. Be3 {[%clk 0:02:38]}  O-O {[%clk 0:02:52]} 12. f4 {[%clk 0:02:35]}  Bd7 {[%clk 0:02:44]} 13. Qf3 {[%clk 0:02:22]}  Nxd4 {[%clk 0:02:42]} 14. Bxd4 {[%clk 0:02:22]}  Bc6 {[%clk 0:02:43]} 15. Rad1 {[%clk 0:02:14]}  Qc7 {[%clk 0:02:41]} 16. Qg3 {[%clk 0:02:14]}  Kh8 {[%clk 0:02:40]} 17. e5 {[%clk 0:02:07]}  dxe5 {[%clk 0:02:36]} 18. fxe5 {[%clk 0:02:06]}  Nd5 {[%clk 0:02:30]} 19. Ne4 {[%clk 0:02:04]}  Rad8 {[%clk 0:02:29]} 20. c3 {[%clk 0:01:58]}  f5 {[%clk 0:02:04]} 21. exf6 {[%clk 0:01:57]}  Qxg3 {[%clk 0:02:01]} 22. Nxg3 {[%clk 0:01:58]}  Bxf6 {[%clk 0:01:58]} 23. Rxe6 {[%clk 0:01:47]}  Nf4 {[%clk 0:01:58]} 24. Ree1 {[%clk 0:01:47]}  Bxd4+ {[%clk 0:01:58]} 25. Rxd4 {[%clk 0:01:46]}  Rxd4 {[%clk 0:01:57]} 26. cxd4 {[%clk 0:01:47]}  Rd8 {[%clk 0:01:58]} 27. Nf5 {[%clk 0:01:31]}  g6 {[%clk 0:01:52]} 28. Ne7 {[%clk 0:01:29]}  Re8 {[%clk 0:01:42]} 29. Re5 {[%clk 0:01:21]}  Bd7 {[%clk 0:01:35]} 30. Bc4 {[%clk 0:01:08]}  Kg7 {[%clk 0:01:28]} 31. g3 {[%clk 0:01:06]}  Nh5 {[%clk 0:01:28]} 32. Nd5 {[%clk 0:00:52]}  Rc8 {[%clk 0:01:13]} 33. Nb6 {[%clk 0:00:43]}  Rc6 {[%clk 0:01:08]} 34. Re7+ {[%clk 0:00:38]}  Kh6 {[%clk 0:01:08]} 35. Rxd7 {[%clk 0:00:19]}  Rxb6 {[%clk 0:01:08]} 36. b3 {[%clk 0:00:19]}  Nf6 {[%clk 0:01:09]} 37. Rf7 {[%clk 0:00:17]}  Rd6 {[%clk 0:01:08]} 38. Kf2 {[%clk 0:00:16]}  b5 {[%clk 0:01:08]} 39. Be2 {[%clk 0:00:14]}  Ne4+ {[%clk 0:01:08]} 40. Ke3 {[%clk 0:00:14]}  Ng5 {[%clk 0:01:06]} 41. Rf4 {[%clk 0:00:14]}  Ne6 {[%clk 0:01:06]} 42. Re4 {[%clk 0:00:14]}  Kg7 {[%clk 0:01:03]} 43. h4 {[%clk 0:00:13]}  Nc7 {[%clk 0:01:03]} 44. Bf3 {[%clk 0:00:12]}  Nd5+ {[%clk 0:01:04]} 45. Kd2 {[%clk 0:00:12]}  Nf6 {[%clk 0:01:03]} 46. Re7+ {[%clk 0:00:11]}  Kf8 {[%clk 0:01:03]} 47. Ra7 {[%clk 0:00:08]}  Rxd4+ {[%clk 0:01:03]} 48. Ke3 {[%clk 0:00:08]}  Rd6 {[%clk 0:01:04]} 49. a4 {[%clk 0:00:09]}  b4 {[%clk 0:00:51]} 50. a5 {[%clk 0:00:08]}  Nd7 {[%clk 0:00:50]} 51. g4 {[%clk 0:00:07]}  Nc5 {[%clk 0:00:49]} 52. Rxh7 {[%clk 0:00:06]}  Nxb3 {[%clk 0:00:49]} 53. h5 {[%clk 0:00:06]}  gxh5 {[%clk 0:00:48]} 54. gxh5 {[%clk 0:00:06]}  Nxa5 {[%clk 0:00:49]} 55. h6 {[%clk 0:00:06]}  b3 {[%clk 0:00:50]} 56. Rg7 {[%clk 0:00:05]}  Rxh6 {[%clk 0:00:48]} 57. Ra7 {[%clk 0:00:04]}  b2 {[%clk 0:00:45]} 58. Be4 {[%clk 0:00:04]}  Re6 {[%clk 0:00:46]} 59. Ra8+ {[%clk 0:00:04]}  Ke7 {[%clk 0:00:41]} 60. Rb8 {[%clk 0:00:04]}  Nc4+ {[%clk 0:00:36]} 61. Kd4 {[%clk 0:00:05]}  Rxe4+ {[%clk 0:00:16]} 62. Kxe4 {[%clk 0:00:05]}  Nd2+ {[%clk 0:00:16]} 63. Kd3 {[%clk 0:00:04]}  b1=Q+ {[%clk 0:00:17]} 64. Rxb1 {[%clk 0:00:04]}  Nxb1 {[%clk 0:00:18]} 65. Kc2 {[%clk 0:00:05]}  Na3+ {[%clk 0:00:18]} 66. Kb3 {[%clk 0:00:05]}  Nb5 {[%clk 0:00:19]} 67. Ka4 {[%clk 0:00:06]}  Nc7 {[%clk 0:00:20]} 68. Ka5 {[%clk 0:00:06]}  Kd7 {[%clk 0:00:21]} 69. Kb6 {[%clk 0:00:07]}  Kc8 {[%clk 0:00:21]} 70. Ka5 {[%clk 0:00:06]}  Kb7 {[%clk 0:00:21]} 0-1


[Site "https://www.chess.com"]

[Event "Titled Tuesday Blitz March 08 Early 2022"]
[White "Gulecyuz, Deniz"]
[Black "Osmonbekov, Talaibek"]
[WhiteFideId "30921341"]
[BlackFideId "2017253"]
[WhiteElo "1923"]
[BlackElo "2135"]
[Result "0-1"]
[Round "09"]
[TimeControl "180+1"]
[Date "2022.03.09"]
[WhiteClock "0:00:20"]
[BlackClock "0:00:57"]

1. Nf3 {[%clk 0:02:56]}  f5 {[%clk 0:02:56]} 2. g3 {[%clk 0:02:56]}  Nf6 {[%clk 0:02:56]} 3. Bg2 {[%clk 0:02:57]}  d6 {[%clk 0:02:55]} 4. d4 {[%clk 0:02:57]}  e6 {[%clk 0:02:55]} 5. c4 {[%clk 0:02:58]}  Be7 {[%clk 0:02:56]} 6. Nc3 {[%clk 0:02:58]}  O-O {[%clk 0:02:57]} 7. O-O {[%clk 0:02:58]}  Ne4 {[%clk 0:02:57]} 8. Qd3 {[%clk 0:02:56]}  Nxc3 {[%clk 0:02:55]} 9. Qxc3 {[%clk 0:02:54]}  a5 {[%clk 0:02:54]} 10. Rd1 {[%clk 0:02:53]}  Qe8 {[%clk 0:02:52]} 11. b3 {[%clk 0:02:46]}  Nc6 {[%clk 0:02:51]} 12. Bb2 {[%clk 0:02:46]}  Bf6 {[%clk 0:02:51]} 13. Rac1 {[%clk 0:02:45]}  e5 {[%clk 0:02:47]} 14. dxe5 {[%clk 0:02:36]}  dxe5 {[%clk 0:02:48]} 15. Qc2 {[%clk 0:02:28]}  g5 {[%clk 0:02:31]} 16. e3 {[%clk 0:02:13]}  g4 {[%clk 0:02:23]} 17. Nh4 {[%clk 0:02:07]}  e4 {[%clk 0:01:52]} 18. Bxf6 {[%clk 0:02:04]}  Rxf6 {[%clk 0:01:53]} 19. Qc3 {[%clk 0:01:52]}  Qe5 {[%clk 0:01:45]} 20. Qxe5 {[%clk 0:01:44]}  Nxe5 {[%clk 0:01:46]} 21. Rd8+ {[%clk 0:01:44]}  Rf8 {[%clk 0:01:47]} 22. Rcd1 {[%clk 0:01:34]}  Be6 {[%clk 0:01:45]} 23. Rxa8 {[%clk 0:01:31]}  Rxa8 {[%clk 0:01:45]} 24. Bf1 {[%clk 0:01:26]}  a4 {[%clk 0:01:24]} 25. Ng2 {[%clk 0:01:17]}  Nf3+ {[%clk 0:01:15]} 26. Kh1 {[%clk 0:01:17]}  axb3 {[%clk 0:01:15]} 27. axb3 {[%clk 0:01:17]}  Ra2 {[%clk 0:01:15]} 28. Nf4 {[%clk 0:01:11]}  Rxf2 {[%clk 0:01:07]} 29. Bg2 {[%clk 0:01:11]}  Kf7 {[%clk 0:01:01]} 30. Ra1 {[%clk 0:00:27]}  Rb2 {[%clk 0:01:00]} 31. Bxf3 {[%clk 0:00:22]}  gxf3 {[%clk 0:00:57]} 32. Ra3 {[%clk 0:00:20]} 0-1


[Site "https://www.chess.com"]

[Event "Titled Tuesday Blitz March 08 Early 2022"]
[White "Hambleton, Aman"]
[Black "Kirillov, Dmitry"]
[WhiteFideId "2606577"]
[BlackFideId "34180572"]
[WhiteElo "2552"]
[BlackElo "2076"]
[Result "1-0"]
[Round "09"]
[TimeControl "180+1"]
[Date "2022.03.09"]
[WhiteClock "0:00:34"]
[BlackClock "0:00:02"]

1. d4 {[%clk 0:02:51]}  Nf6 {[%clk 0:02:59]} 2. c4 {[%clk 0:02:49]}  e6 {[%clk 0:02:59]} 3. Nc3 {[%clk 0:02:46]}  Bb4 {[%clk 0:02:58]} 4. Qc2 {[%clk 0:02:44]}  O-O {[%clk 0:02:53]} 5. Nf3 {[%clk 0:02:44]}  c5 {[%clk 0:02:47]} 6. dxc5 {[%clk 0:02:36]}  Na6 {[%clk 0:02:47]} 7. g3 {[%clk 0:02:36]}  Nxc5 {[%clk 0:02:42]} 8. Bg2 {[%clk 0:02:37]}  Nce4 {[%clk 0:02:41]} 9. O-O {[%clk 0:02:37]}  Nxc3 {[%clk 0:02:40]} 10. bxc3 {[%clk 0:02:38]}  Be7 {[%clk 0:02:41]} 11. e4 {[%clk 0:02:34]}  d6 {[%clk 0:02:39]} 12. e5 {[%clk 0:02:27]}  dxe5 {[%clk 0:02:40]} 13. Nxe5 {[%clk 0:02:27]}  Qc7 {[%clk 0:02:40]} 14. Re1 {[%clk 0:02:21]}  Nd7 {[%clk 0:02:17]} 15. Bf4 {[%clk 0:01:56]}  Nxe5 {[%clk 0:01:24]} 16. Bxe5 {[%clk 0:01:57]}  Bd6 {[%clk 0:01:25]} 17. Qe2 {[%clk 0:01:40]}  Bxe5 {[%clk 0:01:23]} 18. Qxe5 {[%clk 0:01:41]}  Qxe5 {[%clk 0:01:06]} 19. Rxe5 {[%clk 0:01:42]}  Rb8 {[%clk 0:01:05]} 20. Ra5 {[%clk 0:01:26]}  a6 {[%clk 0:00:56]} 21. Rb1 {[%clk 0:01:26]}  b6 {[%clk 0:00:24]} 22. c5 {[%clk 0:01:15]}  bxa5 {[%clk 0:00:12]} 23. Rxb8 {[%clk 0:01:14]}  Bd7 {[%clk 0:00:12]} 24. Rxf8+ {[%clk 0:00:39]}  Kxf8 {[%clk 0:00:13]} 25. Bb7 {[%clk 0:00:40]}  Ke7 {[%clk 0:00:08]} 26. c6 {[%clk 0:00:40]}  Bxc6 {[%clk 0:00:06]} 27. Bxc6 {[%clk 0:00:40]}  Kd6 {[%clk 0:00:07]} 28. Be8 {[%clk 0:00:40]}  f6 {[%clk 0:00:06]} 29. Kf1 {[%clk 0:00:41]}  Kc5 {[%clk 0:00:07]} 30. Bf7 {[%clk 0:00:40]}  e5 {[%clk 0:00:07]} 31. Ke2 {[%clk 0:00:40]}  a4 {[%clk 0:00:07]} 32. a3 {[%clk 0:00:38]}  a5 {[%clk 0:00:06]} 33. Bg8 {[%clk 0:00:38]}  h6 {[%clk 0:00:06]} 34. Kd3 {[%clk 0:00:37]}  f5 {[%clk 0:00:06]} 35. f3 {[%clk 0:00:38]}  g5 {[%clk 0:00:04]} 36. Be6 {[%clk 0:00:35]}  f4 {[%clk 0:00:03]} 37. g4 {[%clk 0:00:35]}  Kd6 {[%clk 0:00:02]} 38. Bg8 {[%clk 0:00:35]}  Kc5 {[%clk 0:00:03]} 39. Ke4 {[%clk 0:00:35]}  h5 {[%clk 0:00:03]} 40. gxh5 {[%clk 0:00:34]}  g4 {[%clk 0:00:03]} 41. fxg4 {[%clk 0:00:34]}  Kd6 {[%clk 0:00:03]} 42. h6 {[%clk 0:00:34]}  f3 {[%clk 0:00:02]} 43. h7 {[%clk 0:00:34]}  f2 {[%clk 0:00:03]} 44. Bc4 {[%clk 0:00:34]}  Kc5 {[%clk 0:00:02]} 45. Bf1 {[%clk 0:00:34]} 1-0


[Site "https://www.chess.com"]

[Event "Titled Tuesday Blitz March 08 Early 2022"]
[White "Heinemann, Josefine"]
[Black "Piliczewski, Bogusz"]
[WhiteFideId "12900460"]
[BlackFideId "1104144"]
[WhiteElo "2300"]
[BlackElo "1896"]
[Result "0-1"]
[Round "09"]
[TimeControl "180+1"]
[Date "2022.03.09"]
[WhiteClock "0:00:01"]
[BlackClock "0:00:09"]

1. Nf3 {[%clk 0:03:00]}  d5 {[%clk 0:02:59]} 2. g3 {[%clk 0:02:57]}  Nf6 {[%clk 0:02:58]} 3. Bg2 {[%clk 0:02:57]}  Bf5 {[%clk 0:02:58]} 4. O-O {[%clk 0:02:57]}  e6 {[%clk 0:02:58]} 5. c4 {[%clk 0:02:58]}  c6 {[%clk 0:02:56]} 6. Nc3 {[%clk 0:02:58]}  h6 {[%clk 0:02:56]} 7. Qb3 {[%clk 0:02:54]}  Qb6 {[%clk 0:02:54]} 8. cxd5 {[%clk 0:02:46]}  Qxb3 {[%clk 0:02:49]} 9. axb3 {[%clk 0:02:44]}  exd5 {[%clk 0:02:49]} 10. d3 {[%clk 0:02:40]}  Nbd7 {[%clk 0:02:47]} 11. e4 {[%clk 0:02:32]}  Be6 {[%clk 0:02:39]} 12. e5 {[%clk 0:02:25]}  Ng8 {[%clk 0:02:32]} 13. d4 {[%clk 0:02:22]}  Bb4 {[%clk 0:02:30]} 14. Bd2 {[%clk 0:01:49]}  Ne7 {[%clk 0:02:27]} 15. Ra4 {[%clk 0:01:46]}  c5 {[%clk 0:02:16]} 16. dxc5 {[%clk 0:01:41]}  Bxc5 {[%clk 0:02:16]} 17. b4 {[%clk 0:01:33]}  Bb6 {[%clk 0:02:07]} 18. Nb5 {[%clk 0:01:26]}  Nc8 {[%clk 0:02:00]} 19. Bc3 {[%clk 0:01:23]}  a6 {[%clk 0:01:55]} 20. Bd4 {[%clk 0:01:22]}  Rb8 {[%clk 0:01:43]} 21. Nc3 {[%clk 0:00:59]}  Bxd4 {[%clk 0:01:41]} 22. Nxd4 {[%clk 0:01:00]}  Nxe5 {[%clk 0:01:40]} 23. Nxd5 {[%clk 0:00:52]}  O-O {[%clk 0:01:23]} 24. Nxe6 {[%clk 0:00:40]}  fxe6 {[%clk 0:01:22]} 25. Nf4 {[%clk 0:00:40]}  Kf7 {[%clk 0:01:18]} 26. Re1 {[%clk 0:00:36]}  Nb6 {[%clk 0:01:14]} 27. Raa1 {[%clk 0:00:31]}  Nbd7 {[%clk 0:01:11]} 28. Bh3 {[%clk 0:00:29]}  Rfe8 {[%clk 0:01:07]} 29. Re3 {[%clk 0:00:26]}  g5 {[%clk 0:00:58]} 30. Nd3 {[%clk 0:00:20]}  Nxd3 {[%clk 0:00:51]} 31. Rxd3 {[%clk 0:00:19]}  Nf8 {[%clk 0:00:52]} 32. Rad1 {[%clk 0:00:19]}  Re7 {[%clk 0:00:50]} 33. Bg2 {[%clk 0:00:19]}  Rc8 {[%clk 0:00:47]} 34. Rd8 {[%clk 0:00:17]}  Rxd8 {[%clk 0:00:47]} 35. Rxd8 {[%clk 0:00:18]}  Rc7 {[%clk 0:00:40]} 36. Rb8 {[%clk 0:00:16]}  Rc1+ {[%clk 0:00:36]} 37. Bf1 {[%clk 0:00:16]}  b5 {[%clk 0:00:28]} 38. Ra8 {[%clk 0:00:15]}  Ra1 {[%clk 0:00:27]} 39. Kg2 {[%clk 0:00:14]}  Ra4 {[%clk 0:00:21]} 40. Ra7+ {[%clk 0:00:09]}  Kf6 {[%clk 0:00:20]} 41. Be2 {[%clk 0:00:06]}  Rxb4 {[%clk 0:00:19]} 42. Rxa6 {[%clk 0:00:06]}  Rxb2 {[%clk 0:00:19]} 43. Bd3 {[%clk 0:00:05]}  b4 {[%clk 0:00:17]} 44. Rb6 {[%clk 0:00:05]}  Nd7 {[%clk 0:00:16]} 45. Rb5 {[%clk 0:00:04]}  Ne5 {[%clk 0:00:16]} 46. Bf1 {[%clk 0:00:03]}  b3 {[%clk 0:00:14]} 47. h4 {[%clk 0:00:02]}  gxh4 {[%clk 0:00:13]} 48. gxh4 {[%clk 0:00:02]}  Rb1 {[%clk 0:00:12]} 49. Rb8 {[%clk 0:00:02]}  b2 {[%clk 0:00:12]} 50. Be2 {[%clk 0:00:01]}  Kf5 {[%clk 0:00:09]} 0-1


[Site "https://www.chess.com"]

[Event "Titled Tuesday Blitz March 08 Early 2022"]
[White "Hess, Max"]
[Black "Demchenko, Anton"]
[WhiteFideId "24656666"]
[BlackFideId "4160258"]
[WhiteElo "2276"]
[BlackElo "2539"]
[Result "0-1"]
[Round "09"]
[TimeControl "180+1"]
[Date "2022.03.08"]
[WhiteClock "0:00:15"]
[BlackClock "0:00:11"]

1. d4 {[%clk 0:03:00]}  Nf6 {[%clk 0:03:00]} 2. Nf3 {[%clk 0:03:00]}  d6 {[%clk 0:02:59]} 3. g3 {[%clk 0:03:00]}  g6 {[%clk 0:02:59]} 4. Bg2 {[%clk 0:03:00]}  Bg7 {[%clk 0:03:00]} 5. O-O {[%clk 0:03:01]}  O-O {[%clk 0:03:01]} 6. b3 {[%clk 0:03:01]}  b5 {[%clk 0:03:00]} 7. c4 {[%clk 0:02:43]}  bxc4 {[%clk 0:02:59]} 8. Nfd2 {[%clk 0:02:43]}  c6 {[%clk 0:02:57]} 9. Nxc4 {[%clk 0:02:43]}  a5 {[%clk 0:02:55]} 10. Nc3 {[%clk 0:02:41]}  Nfd7 {[%clk 0:02:37]} 11. Bb2 {[%clk 0:02:34]}  d5 {[%clk 0:02:33]} 12. Nd2 {[%clk 0:02:22]}  Bxd4 {[%clk 0:02:30]} 13. e4 {[%clk 0:02:13]}  e6 {[%clk 0:02:30]} 14. Qc2 {[%clk 0:02:11]}  Ba6 {[%clk 0:02:29]} 15. Rfd1 {[%clk 0:02:10]}  Bg7 {[%clk 0:02:28]} 16. Na4 {[%clk 0:02:05]}  Bxb2 {[%clk 0:02:25]} 17. Qxb2 {[%clk 0:02:06]}  Qe7 {[%clk 0:02:19]} 18. Rac1 {[%clk 0:02:05]}  Rd8 {[%clk 0:02:09]} 19. h4 {[%clk 0:02:03]}  Ra7 {[%clk 0:01:56]} 20. h5 {[%clk 0:01:55]}  Be2 {[%clk 0:01:53]} 21. hxg6 {[%clk 0:01:53]}  Bxd1 {[%clk 0:01:50]} 22. gxh7+ {[%clk 0:01:52]}  Kxh7 {[%clk 0:01:50]} 23. Rxd1 {[%clk 0:01:52]}  Qf6 {[%clk 0:01:47]} 24. Qc2 {[%clk 0:01:48]}  Kg7 {[%clk 0:01:47]} 25. Nf3 {[%clk 0:01:42]}  Na6 {[%clk 0:01:16]} 26. Qe2 {[%clk 0:01:40]}  Raa8 {[%clk 0:01:02]} 27. Qe3 {[%clk 0:01:31]}  Nc7 {[%clk 0:00:57]} 28. Rc1 {[%clk 0:01:28]}  dxe4 {[%clk 0:00:54]} 29. Qxe4 {[%clk 0:01:26]}  Nd5 {[%clk 0:00:54]} 30. Nd4 {[%clk 0:01:12]}  Ne7 {[%clk 0:00:37]} 31. Nf3 {[%clk 0:01:02]}  Rac8 {[%clk 0:00:35]} 32. Nc5 {[%clk 0:00:55]}  Nxc5 {[%clk 0:00:35]} 33. Rxc5 {[%clk 0:00:56]}  Rd1+ {[%clk 0:00:34]} 34. Kh2 {[%clk 0:00:56]}  Rh8+ {[%clk 0:00:34]} 35. Nh4 {[%clk 0:00:55]}  Qxf2 {[%clk 0:00:23]} 36. Qg4+ {[%clk 0:00:54]}  Ng6 {[%clk 0:00:12]} 37. Rg5 {[%clk 0:00:48]}  Rxh4+ {[%clk 0:00:12]} 38. gxh4 {[%clk 0:00:46]}  Rd4 {[%clk 0:00:13]} 39. Qg3 {[%clk 0:00:15]}  Rxh4+ {[%clk 0:00:11]} 40. Qxh4 {[%clk 0:00:15]}  Qxh4+ {[%clk 0:00:11]} 0-1


[Site "https://www.chess.com"]